fUST/lending_fUST_20241011
["ID","MTS","AMOUNT","RATE_DAILY","PERIOD"]
[340110043,1728580239246,-45382.67464048,0.000412,120]
[340110044,1728580239256,-448.26094041,0.0004122,8]
[340110045,1728580239266,-150.565229,0.000413,2]
[340110046,1728580239275,-300.0,0.000413,21]
[340110047,1728580239286,-3812.95256681,0.00041351,25]
[340110048,1728580239295,-42948.9781394,0.00041352,6]
[340110049,1728580239305,-239.96256,0.00041352,120]
[340110051,1728580239314,-239.96256,0.00041352,120]
[340110052,1728580239323,-31422.9568854,0.00041362,6]
[340110054,1728580239333,-42948.9781394,0.00041362,6]
[340110055,1728580239342,-239.96256,0.00041362,120]
[340110056,1728580239352,-239.96256,0.00041362,120]
[340110057,1728580239361,-31422.9568854,0.00041372,6]
[340110058,1728580239371,-2609.377501,0.00041372,6]
[340110065,1728580240003,-40339.6006384,0.00041372,6]
[340110066,1728580240013,-330.199431,0.00041372,3]
[340110067,1728580240022,-330.199431,0.00041372,3]
[340110068,1728580240033,-151.717064,0.00041372,2]
[340110069,1728580240043,-239.96256,0.00041372,120]
[340110070,1728580240052,-239.96256,0.00041372,120]
[340110071,1728580240061,-1351.85663497,0.00041382,2]
[340110072,1728580240071,-38076.3665014,0.00041382,2]
[340110073,1728580240080,-9159.22095545,0.00041382,2]
[340110074,1728580240089,-330.199431,0.00041382,3]
[340110075,1728580240098,-330.199431,0.00041382,3]
[340110076,1728580240107,-239.96256,0.00041382,120]
[340110077,1728580240116,-239.96256,0.00041382,120]
[340110078,1728580240125,-5000.0,0.000415,60]
[340110079,1728580240135,-1000.0,0.00041512,7]
[340110080,1728580240144,-560.0,0.00041517,30]
[340110081,1728580240153,-1000.0,0.00041529,7]
[340110082,1728580240162,-778.5078147,0.00041541,2]
[340110083,1728580240171,-1000.0,0.00041549,7]
[340110084,1728580240180,-1000.0,0.0004155,2]
[340110085,1728580240190,-1000.0,0.00041553,7]
[340110086,1728580240200,-1000.0,0.00041573,7]
[340110087,1728580240209,-311.13495864,0.0004158,7]
[340110088,1728580240219,-1000.0,0.00041584,7]
[340110089,1728580240228,-1000.0,0.00041592,7]
[340110090,1728580240237,-1000.0,0.00041618,7]
[340110091,1728580240247,-5091.08342092,0.0004162,6]
[340110119,1728580243047,-307.69376015,0.0003965,3]
[340110121,1728580243057,-572.83459528,0.0004162,6]
[340110123,1728580243068,-448.04999976,0.0004162,6]
[340110136,1728580243238,-1212.09332889,0.0004162,6]
[340110204,1728580246021,-1000.0,0.00041262,2]
[340110205,1728580246034,-35624.91679455,0.0004162,6]
[340110206,1728580246043,-239.96256,0.00041621,120]
[340110207,1728580246053,-239.96256,0.00041621,120]
[340110208,1728580246063,-239.96256,0.0004163,120]
[340110209,1728580246073,-239.96256,0.0004163,120]
[340110210,1728580246082,-239.96256,0.0004163,120]
[340110211,1728580246091,-239.96256,0.0004163,120]
[340110212,1728580246102,-31422.9568854,0.0004163,6]
[340110213,1728580246111,-31422.9568854,0.00041631,6]
[340110214,1728580246121,-42948.9781394,0.00041631,6]
[340110215,1728580246130,-330.199431,0.0004164,3]
[340110216,1728580246139,-330.199431,0.0004164,3]
[340110217,1728580246149,-330.199431,0.0004164,3]
[340110218,1728580246158,-330.199431,0.0004164,3]
[340110219,1728580246168,-31422.9568854,0.0004164,6]
[340110220,1728580246177,-42948.9781394,0.0004164,6]
[340110221,1728580246187,-330.199431,0.00041641,3]
[340110222,1728580246196,-330.199431,0.00041641,3]
[340110223,1728580246206,-239.96256,0.00041641,120]
[340110224,1728580246216,-239.96256,0.00041641,120]
[340110225,1728580246226,-5000.0,0.0004165,14]
[340110226,1728580246236,-330.199431,0.0004165,3]
[340110227,1728580246246,-330.199431,0.0004165,3]
[340110228,1728580246256,-239.96256,0.0004165,120]
[340110229,1728580246266,-239.96256,0.0004165,120]
[340110230,1728580246275,-23927.70851715,0.0004165,2]
[340110231,1728580248880,160.0,0.0003526,2]
[340110240,1728581225158,-250.0,0.00030389,2]
[340110241,1728581225181,-528.0582228,0.00032486,2]
[340110242,1728581225203,-400.0,0.00032525,2]
[340110243,1728581225225,-400.0,0.00032525,2]
[340110244,1728581225249,-564.90614766,0.00032526,2]
[340110245,1728581233102,-308.91368429,0.00032526,2]
[340110246,1728581297831,185.2985179,0.000123,2]
[340110247,1728581311032,1239.10235904,0.000134,2]
[340110248,1728581345109,-400.0,0.00032525,2]
[340110249,1728581345134,-400.0,0.00032525,2]
[340110250,1728581345158,-24026.18016805,0.00032526,2]
[340110251,1728581345181,-4119.46076409,0.00032771,2]
[340110252,1728581345201,-15042.7211131,0.00032813,2]
[340110253,1728581345223,-166.655266,0.00032871,2]
[340110254,1728581345243,-166.655266,0.00032962,2]
[340110255,1728581345263,-2519.67798359,0.00033,2]
[340110256,1728581345284,-166.655266,0.00033052,2]
[340110257,1728581345305,-166.655266,0.00033142,2]
[340110258,1728581345325,-166.655266,0.00033232,2]
[340110259,1728581345349,-166.655266,0.00033322,2]
[340110260,1728581345370,-166.655266,0.00033412,2]
[340110261,1728581345391,-166.655266,0.00033502,2]
[340110262,1728581345411,-166.655266,0.00033593,2]
[340110263,1728581345432,-166.655266,0.00033683,2]
[340110264,1728581345456,-166.655266,0.00033773,2]
[340110265,1728581345478,-166.655266,0.00033863,2]
[340110266,1728581345499,-166.655266,0.00033953,2]
[340110267,1728581345525,-166.655266,0.00034043,2]
[340110268,1728581345548,-166.655266,0.00034134,2]
[340110269,1728581345569,-166.655266,0.00034224,2]
[340110270,1728581345590,-166.655266,0.00034314,2]
[340110271,1728581345612,-166.655266,0.00034404,2]
[340110272,1728581345743,-166.655266,0.00034494,2]
[340110273,1728581345766,-166.655266,0.00034584,2]
[340110274,1728581345786,-200.691555,0.00034795,2]
[340110275,1728581345809,-560.0,0.00034964,2]
[340110276,1728581345832,-560.0,0.00035778,2]
[340110277,1728581345856,-539.59542323,0.00036935,2]
[340110318,1728581432129,-400.0,0.00037731,2]
[340110320,1728581432140,-303.8063739,0.00037744,2]
[340110322,1728581432151,-158.0,0.00038,2]
[340110324,1728581432162,-772.10352853,0.00039,5]
[340110327,1728581432172,-150.112233,0.00039,44]
[340110328,1728581432182,-150.112235,0.000391,44]
[340110330,1728581432192,-2389.69592572,0.00039652,3]
[340110332,1728581432205,-1147.35149318,0.00039652,3]
[340110334,1728581432217,-6229.02967819,0.00039652,3]
[340110336,1728581432226,-394.46757576,0.00039678,2]
[340110338,1728581432236,-778.5078147,0.000399,2]
[340110340,1728581432247,-500.0,0.00039979,31]
[340110342,1728581432257,-500.0,0.00039979,31]
[340110343,1728581432266,-445.75695979,0.00039979,31]
[340110344,1728581432276,-42845.34825398,0.0003998,6]
[340110345,1728581432291,-5883.01269447,0.0003998,6]
[340110346,1728581432304,-807.98813339,0.0003998,6]
[340110347,1728581432316,-6708.84701711,0.0003998,6]
[340110348,1728581432330,-846.24591144,0.0003998,6]
[340110365,1728581438308,-500.0,0.00039973,5]
[340110366,1728581438319,-121.21861837,0.0003998,6]
[340110368,1728581438372,-6247.35149694,0.0003998,6]
[340110369,1728581438383,-56378.0271713,0.0003998,6]
[340110370,1728581438393,-160.0,0.00039989,30]
[340110371,1728581438404,-331.29256942,0.00039989,31]
[340110372,1728581438417,-500.0,0.00039989,31]
[340110373,1728581438428,-500.0,0.00039989,31]
[340110374,1728581438438,-500.0,0.00039989,31]
[340110375,1728581438450,-500.0,0.00039989,31]
[340110376,1728581438459,-500.0,0.00039989,31]
[340110377,1728581438469,-500.0,0.00039989,31]
[340110378,1728581438479,-500.0,0.00039989,31]
[340110379,1728581438489,-500.0,0.00039989,31]
[340110380,1728581438501,-313.91313289,0.00039989,31]
[340110381,1728581438511,-500.0,0.00039989,31]
[340110382,1728581438521,-500.0,0.00039989,31]
[340110383,1728581438531,-450.0,0.00039989,31]
[340110384,1728581438541,-500.0,0.00039989,31]
[340110385,1728581438551,-126920.024251,0.0003999,6]
[340110386,1728581438561,-112756.054343,0.0003999,6]
[340110387,1728581438570,-151.0,0.0003999,14]
[340110388,1728581438580,-151.0,0.0003999,14]
[340110389,1728581438589,-151.717064,0.0003999,2]
[340110390,1728581438600,-48000.44680111,0.0004,120]
[340110391,1728581438614,-31217.4763387,0.0004,120]
[340110392,1728581438626,-2756.38284064,0.0004,120]
[340110393,1728581438638,-16238.95371709,0.0004,120]
[340110394,1728581438651,-23555.65377948,0.0004,120]
[340110401,1728581440049,-78468.25021451,0.0004,120]
[340110402,1728581440059,-151.0,0.0004,3]
[340110403,1728581440068,-151.0,0.0004,3]
[340110404,1728581440078,-151.0,0.0004,14]
[340110405,1728581440087,-200.691555,0.00040173,2]
[340110406,1728581440096,-150.112233,0.00041,44]
[340110407,1728581440110,-151.0,0.0004119,3]
[340110408,1728581440119,-151.0,0.0004119,3]
[340110409,1728581440129,-32526.08194997,0.000412,120]
[340110414,1728581443298,-306.21534203,0.000412,120]
[340110423,1728581446102,-514.07,0.000412,120]
[340110426,1728581741566,300.0,0.00039679,3]
[340110429,1728582331254,-1636.16131754,0.00034293,2]
[340110430,1728582351091,-929.7390722,0.00034293,2]
[340110431,1728582440247,-400.0,0.0003397,2]
[340110432,1728582440270,-309.14730038,0.0003397,2]
[340110433,1728582446100,-90.85269962,0.0003397,2]
[340110434,1728582446127,-3286.54680222,0.00033971,2]
[340110435,1728582449098,-519.05117204,0.00033971,2]
[340110436,1728582562099,-400.0,0.0003397,2]
[340110437,1728582562122,-400.0,0.0003397,2]
[340110438,1728582562149,-21094.40202574,0.00033971,2]
[340110439,1728582562171,-1087.9451583,0.00034185,2]
[340110440,1728582562192,-227.07944057,0.00034193,2]
[340110441,1728582562215,-170.484318,0.00034444,2]
[340110442,1728582562238,-219.30209,0.00034795,2]
[340110443,1728582562260,-170.484318,0.00034803,2]
[340110444,1728582562281,-302.8183302,0.00035,2]
[340110445,1728582562302,-170.484318,0.00035162,2]
[340110446,1728582562322,-302.8183302,0.0003535,2]
[340110447,1728582562344,-170.484318,0.00035521,2]
[340110448,1728582562370,-170.484318,0.0003588,2]
[340110449,1728582562395,-170.484318,0.00036239,2]
[340110450,1728582562418,-560.0,0.00036462,2]
[340110470,1728582632182,-167.14423073,0.00037438,48]
[340110471,1728582632192,-150.112233,0.000376,44]
[340110472,1728582632206,-150.112233,0.00038,44]
[340110473,1728582632216,-10.09878458,0.00038411,30]
[340110474,1728582632232,-310.746,0.00038411,30]
[340110475,1728582632279,-79.15521542,0.00038411,30]
[340110476,1728582632289,-22684.60683445,0.00038412,2]
[340110490,1728582638452,-16043.03846294,0.00038412,2]
[340110491,1728582638687,-2382.67585133,0.00038412,2]
[340110492,1728582638699,-480.02913384,0.00038412,2]
[340110529,1728582643758,-150.112233,0.000375,44]
[340110531,1728582643771,-31.68346895,0.00038412,2]
[340110536,1728582646298,-78.79414449,0.00038412,2]
[340110537,1728582646311,-6886.61619582,0.00038412,2]
[340110538,1728582646320,-166.37536846,0.0003849,2]
[340110539,1728582646330,-4722.86679095,0.0003859,2]
[340110540,1728582646340,-332.36,0.0003877,3]
[340110541,1728582646349,-500.0,0.00038773,5]
[340110542,1728582646359,-500.0,0.00038773,5]
[340110543,1728582646369,-500.0,0.00038779,15]
[340110544,1728582646379,-231.90479859,0.00038779,15]
[340110545,1728582646388,-500.0,0.00038779,15]
[340110546,1728582646399,-184.73919303,0.00038779,15]
[340110547,1728582646409,-500.0,0.00038779,15]
[340110548,1728582646418,-500.0,0.00038779,15]
[340110549,1728582646428,-500.0,0.00038779,15]
[340110550,1728582646438,-500.0,0.00038779,15]
[340110551,1728582646448,-500.0,0.00038779,15]
[340110552,1728582646459,-500.0,0.00038779,15]
[340110553,1728582646470,-500.0,0.00038779,15]
[340110554,1728582646480,-500.0,0.00038779,15]
[340110555,1728582646490,-199.9999991,0.00038779,15]
[340110556,1728582646500,-500.0,0.00038779,15]
[340110557,1728582646510,-500.0,0.00038779,15]
[340110558,1728582646519,-500.0,0.00038779,15]
[340110559,1728582646529,-180285.26085109,0.0003878,5]
[340110561,1728582947368,25390.25884217,0.00028202,4]
[340110562,1728583224075,182.78373716,0.00031878,7]
[340110573,1728583534443,150.0,0.00028,5]
[340110574,1728583534943,500.0,0.00028,5]
[340110575,1728583534994,515.71588476,0.0002937,5]
[340110615,1728583555845,500.0,0.00028,5]
[340110616,1728583555894,1000.0,0.0002937,5]
[340110617,1728583555947,461.05558458,0.00031373,5]
[340110618,1728583558591,500.0,0.00028,5]
[340110619,1728583558641,249.2004,0.0002937,5]
[340110638,1728583665521,150.48766827,0.00027787,5]
[340110639,1728583674352,500.33647989,0.00027787,5]
[340110640,1728583693283,502.29699921,0.00027787,5]
[340110641,1728583698411,27875.3787539,0.00032459,4]
[340110642,1728583703231,43103.5943708,0.00032459,4]
[340110659,1728583717043,210.6,0.00030568,10]
[340110660,1728583721836,-341.33000789,0.00037235,120]
[340110661,1728583721860,-150.112233,0.000375,44]
[340110662,1728583721968,-150.112233,0.000378,44]
[340110663,1728583721995,-150.112233,0.000379,44]
[340110664,1728583728852,175.5,0.00031868,10]
[340110665,1728583740241,877.52,0.00031868,10]
[340110666,1728583765235,360.00328522,0.00038378,25]
[340110667,1728583805369,301.85,0.00029268,3]
[340110668,1728583805680,603.7,0.00030638,3]
[340110669,1728583816247,150.92,0.00029268,3]
[340110670,1728583816584,301.84,0.00030638,3]
[340110671,1728583827116,452.81,0.00029268,3]
[340110700,1728583832399,-166.666666,0.00024474,2]
[340110702,1728583832408,-2799.25930972,0.0002519,2]
[340110704,1728583832420,-200.74069028,0.0002519,2]
[340110705,1728583832430,-3662.6961377,0.00025274,2]
[340110706,1728583832442,-589.7412166,0.00025274,2]
[340110707,1728583832452,-192.04992976,0.00025374,2]
[340110708,1728583832464,-29.03856124,0.00025374,2]
[340110709,1728583832473,-1163.5396383,0.00025719,2]
[340110710,1728583832483,-300.0,0.00025813,2]
[340110711,1728583832493,-1482.37180046,0.00025815,2]
[340110712,1728583832504,-4432.92883178,0.00025815,2]
[340110713,1728583832520,-385.18011977,0.00025815,2]
[340110714,1728583832536,-298.915,0.00025815,2]
[340110715,1728583832547,-8400.24026467,0.00025815,2]
[340110716,1728583832559,-43.08509642,0.00025815,2]
[340110717,1728583832568,-3026.24874002,0.00025928,2]
[340110752,1728583838695,-3479.17549128,0.00025928,2]
[340110753,1728583838706,-182.78373716,0.00025928,2]
[340110754,1728583838716,-2306.35622655,0.00026678,2]
[340110755,1728583838726,-6360.58621198,0.00026858,2]
[340110756,1728583838735,-24900.0,0.00026958,2]
[340110757,1728583838745,-250.0,0.00027164,2]
[340110758,1728583838755,-250.0,0.00027312,2]
[340110759,1728583838764,-250.0,0.00027387,2]
[340110760,1728583838773,-1325.7469724,0.00027405,2]
[340110761,1728583838783,-250.0,0.00027462,2]
[340110762,1728583838794,-183.90750277,0.00027512,2]
[340110763,1728583838804,-250.0,0.00027537,2]
[340110764,1728583838814,-250.0,0.00027611,2]
[340110765,1728583838824,-159.534834,0.00027677,2]
[340110766,1728583838833,-250.0,0.00027686,2]
[340110767,1728583838843,-250.0,0.00027761,2]
[340110768,1728583838853,-250.0,0.00027836,2]
[340110769,1728583838864,-250.0,0.00027911,2]
[340110770,1728583838874,-800.2244939,0.00027948,2]
[340110771,1728583838883,-192.936845,0.00027961,2]
[340110772,1728583838893,-192.936845,0.00027969,2]
[340110773,1728583838902,-192.936845,0.00027976,2]
[340110774,1728583838912,-5000.0,0.00027978,2]
[340110775,1728583838921,-192.936845,0.00027984,2]
[340110776,1728583838931,-250.0,0.00027986,2]
[340110777,1728583838940,-192.936845,0.00027991,2]
[340110778,1728583838949,-192.936845,0.00027998,2]
[340110779,1728583838958,-192.936845,0.00028006,2]
[340110780,1728583838968,-192.936845,0.00028013,2]
[340110781,1728583838978,-192.936845,0.0002802,2]
[340110782,1728583838987,-192.936845,0.00028028,2]
[340110783,1728583838997,-192.936845,0.00028035,2]
[340110784,1728583839006,-192.936845,0.00028043,2]
[340110785,1728583839017,-192.936845,0.0002805,2]
[340110786,1728583839026,-192.936845,0.00028057,2]
[340110787,1728583839036,-250.0,0.00028061,2]
[340110788,1728583839045,-192.936845,0.00028065,2]
[340110789,1728583839056,-192.936845,0.00028072,2]
[340110790,1728583839065,-192.936845,0.00028079,2]
[340110791,1728583839074,-192.936845,0.00028087,2]
[340110792,1728583839085,-192.936845,0.00028094,2]
[340110793,1728583839095,-192.936845,0.00028101,2]
[340110794,1728583839105,-250.0,0.00028136,2]
[340110795,1728583839118,-250.0,0.00028211,2]
[340110796,1728583839128,-250.0,0.00028286,2]
[340110797,1728583839139,-250.0,0.0002836,2]
[340110798,1728583839149,-500.0,0.00028393,2]
[340110799,1728583839159,-500.0,0.00028393,2]
[340110800,1728583839169,-500.0,0.00028393,2]
[340110801,1728583839179,-500.0,0.00028393,2]
[340110802,1728583839188,-500.0,0.00028393,2]
[340110803,1728583839198,-500.0,0.00028393,2]
[340110804,1728583839207,-500.0,0.00028393,2]
[340110805,1728583839218,-500.0,0.00028393,2]
[340110806,1728583839228,-361.20677898,0.00028393,2]
[340110807,1728583839237,-500.0,0.00028393,2]
[340110808,1728583839247,-500.0,0.00028393,2]
[340110809,1728583839256,-500.0,0.00028393,2]
[340110810,1728583839266,-500.0,0.00028393,2]
[340110811,1728583839276,-500.0,0.00028393,2]
[340110812,1728583839286,-500.0,0.00028393,2]
[340110813,1728583839295,-500.0,0.00028393,2]
[340110814,1728583839304,-500.0,0.00028393,2]
[340110815,1728583839314,-500.0,0.00028393,2]
[340110816,1728583839324,-500.0,0.00028393,2]
[340110817,1728583839333,-500.0,0.00028393,2]
[340110818,1728583839343,-500.0,0.00028393,2]
[340110819,1728583839352,-500.0,0.00028393,2]
[340110820,1728583839365,-420.0,0.00028394,2]
[340110821,1728583839374,-250.0,0.00028435,2]
[340110822,1728583839383,-250.0,0.0002851,2]
[340110823,1728583839392,-500.0,0.0002854,2]
[340110824,1728583839401,-250.0,0.00028585,2]
[340110825,1728583839411,-250.0,0.0002866,2]
[340110826,1728583839422,-250.0,0.00028735,2]
[340110827,1728583839431,-5000.0,0.00029278,2]
[340110828,1728583839441,-161.50021741,0.0002991,2]
[340110829,1728583839450,-2005.93951274,0.0003,2]
[340110830,1728583839460,-218.0,0.0003,2]
[340110831,1728583839470,-5000.0,0.00030578,2]
[340110832,1728583839479,-888.67270024,0.00030655,2]
[340110833,1728583839489,-183.90750276,0.00030747,2]
[340110834,1728583839498,-587.0,0.00031234,2]
[340110835,1728583839508,-153.278941,0.000318,2]
[340110836,1728583839517,-5000.0,0.00031878,2]
[340110837,1728583839527,-486.18363501,0.00032188,2]
[340110838,1728583839536,-6360.58621197,0.00032293,2]
[340110839,1728583839545,-1000.94858904,0.00032458,2]
[340110840,1728583839555,-5000.0,0.00033178,2]
[340110841,1728583839565,-466.05918175,0.00033797,2]
[340110842,1728583839574,-183.90750276,0.00033983,2]
[340110843,1728583839584,-823.0,0.00034357,2]
[340110844,1728583839593,-5000.0,0.00034478,2]
[340110845,1728583839603,-259.102397,0.00034795,2]
[340110846,1728583839615,-164.18198,0.00035604,2]
[340110847,1728583839625,-5000.0,0.00035778,7]
[340110848,1728583839635,-339.20864069,0.00035947,15]
[340110849,1728583839645,-500.0,0.00035947,15]
[340110850,1728583839656,-500.0,0.00035947,15]
[340110851,1728583839666,-500.0,0.00035947,15]
[340110852,1728583839676,-500.0,0.00035947,15]
[340110853,1728583839685,-500.0,0.00035947,15]
[340110854,1728583839695,-500.0,0.00035947,15]
[340110855,1728583839704,-500.0,0.00035947,15]
[340110856,1728583839712,-500.0,0.00035947,15]
[340110857,1728583839722,-500.0,0.00035947,15]
[340110858,1728583839732,-500.0,0.00035947,15]
[340110859,1728583839741,-500.0,0.00035947,15]
[340110860,1728583839750,-500.0,0.00035947,15]
[340110861,1728583839760,-246.62103284,0.00035947,15]
[340110862,1728583839770,-500.0,0.00035947,15]
[340110863,1728583839780,-500.0,0.00035947,15]
[340110864,1728583839790,-500.0,0.00035947,15]
[340110865,1728583839800,-27875.3787539,0.00035948,5]
[340110866,1728583839810,-6640.36040891,0.00035948,5]
[340110867,1728583839823,-594.57103695,0.00035948,5]
[340110868,1728583839834,-9212.065238,0.00035948,5]
[340110882,1728583843449,-19564.37752187,0.00035948,5]
[340110883,1728583843460,-1500.00500295,0.00035948,5]
[340110893,1728583843847,-5592.21516212,0.00035948,5]
[340110894,1728583843857,-503.67560198,0.00036073,5]
[340110895,1728583843868,-500.0,0.00036339,5]
[340110896,1728583843878,-500.0,0.00036339,5]
[340110897,1728583843886,-500.0,0.00036339,5]
[340110898,1728583843895,-492.34605418,0.00036574,5]
[340110899,1728583843905,-3811.76318172,0.00037078,7]
[340110900,1728583843917,-1188.23681828,0.00037078,7]
[340110901,1728583843926,-183.90750276,0.00037218,2]
[340110902,1728583843936,-4548.30567896,0.00037389,5]
[340110903,1728583843960,-23327.07307494,0.00037389,5]
[340110904,1728583843969,-43103.5943708,0.00037389,5]
[340110908,1728583844061,-454.56818295,0.00037689,4]
[340110910,1728583844072,-1000.0,0.00037709,5]
[340110912,1728583844082,-1000.0,0.00037709,5]
[340110914,1728583844092,-1000.0,0.00037709,5]
[340110916,1728583844102,-6360.58621197,0.00037727,2]
[340110917,1728583844111,-1152.0,0.00037793,2]
[340110918,1728583844123,-150.112233,0.00038,8]
[340110919,1728583844132,-27875.3787539,0.00038022,5]
[340110920,1728583844142,-43103.5943708,0.00038022,5]
[340110921,1728583844163,-454.56818295,0.00038066,4]
[340110923,1728583844173,-6322.97171115,0.00038331,2]
[340110925,1728583844183,-1546.47299818,0.00038378,25]
[340110927,1728583844193,-5000.0,0.00038378,7]
[340110929,1728583844203,-151.0,0.00038402,14]
[340110930,1728583844213,-151.0,0.00038402,14]
[340110931,1728583844223,-151.0,0.00038402,2]
[340110932,1728583844234,-151.0,0.00038402,14]
[340110933,1728583844245,-151.0,0.00038402,14]
[340110934,1728583844256,-27875.3787539,0.00038402,5]
[340110935,1728583844267,-43103.5943708,0.00038402,5]
[340110936,1728583844277,-31884.99886477,0.00038412,2]
[340110937,1728583844290,-5388.13057117,0.00038412,2]
[340110938,1728583844302,-10113.03252248,0.00038412,2]
[340110939,1728583844312,-454.56818295,0.00038443,4]
[340110940,1728583844322,-1308.72623308,0.000385,30]
[340110941,1728583844521,9997.44159231,0.00039718,120]
[340111005,1728583846482,-5950.0,0.000385,30]
[340111006,1728583846504,-20454.81798713,0.000385,30]
[340111007,1728583846527,-1704.73577979,0.000385,30]
[340111008,1728583846537,-150.112233,0.000386,8]
[340111009,1728583846546,-817.10942058,0.0003865,2]
[340111010,1728583846556,-150.112233,0.000387,8]
[340111011,1728583846565,-55750.7575078,0.0003874,5]
[340111012,1728583846575,-86207.1887417,0.0003874,5]
[340111013,1728583846585,-151.0,0.00038741,14]
[340111014,1728583846594,-151.0,0.00038741,14]
[340111015,1728583846603,-151.0,0.00038741,14]
[340111016,1728583846619,-151.0,0.00038741,14]
[340111017,1728583846634,-151.0,0.00038741,14]
[340111018,1728583846644,-151.0,0.00038741,14]
[340111019,1728583846654,-213.870517,0.00038741,14]
[340111020,1728583846664,-151.0,0.0003875,14]
[340111021,1728583846673,-151.023134,0.0003875,14]
[340111022,1728583846683,-151.0,0.0003875,3]
[340111023,1728583846692,-573.915148,0.0003875,14]
[340111024,1728583846702,-151.0,0.0003875,14]
[340111025,1728583846712,-151.0,0.0003875,3]
[340111026,1728583846722,-573.915148,0.0003875,14]
[340111027,1728583846732,-278.646024,0.0003875,14]
[340111028,1728583846741,-151.0,0.0003875,14]
[340111029,1728583846754,-151.0,0.0003875,14]
[340111030,1728583846763,-647.869709,0.0003875,14]
[340111031,1728583846772,-151.0,0.0003875,14]
[340111032,1728583846782,-647.869709,0.0003875,14]
[340111033,1728583846792,-151.0,0.0003875,14]
[340111034,1728583846804,-151.0,0.0003875,14]
[340111035,1728583846813,-151.0,0.0003875,14]
[340111036,1728583846822,-151.0,0.0003875,14]
[340111037,1728583846832,-151.0,0.0003875,14]
[340111038,1728583846841,-176.18483316,0.0003875,14]
[340111039,1728583846851,-55750.7575078,0.0003876,5]
[340111040,1728583846861,-500.0,0.0003877,15]
[340111041,1728583846874,-151.0,0.0003877,14]
[340111042,1728583846883,-151.0,0.0003877,14]
[340111043,1728583846893,-151.0,0.0003877,3]
[340111044,1728583846903,-573.915148,0.0003877,14]
[340111045,1728583846912,-151.0,0.0003877,3]
[340111046,1728583846922,-151.0,0.0003877,14]
[340111047,1728583846931,-573.915148,0.0003877,14]
[340111048,1728583846941,-151.0,0.0003877,14]
[340111049,1728583846951,-151.0,0.0003877,3]
[340111050,1728583846960,-151.0,0.0003877,3]
[340111051,1728583846970,-573.915148,0.0003877,14]
[340111052,1728583846979,-573.915148,0.0003877,14]
[340111053,1728583846988,-151.0,0.0003877,14]
[340111054,1728583846998,-151.0,0.0003877,14]
[340111055,1728583847007,-154.802794,0.0003877,14]
[340111056,1728583847017,-647.869709,0.0003877,14]
[340111057,1728583847027,-647.869709,0.0003877,14]
[340111058,1728583847036,-151.0,0.0003877,14]
[340111059,1728583847046,-151.0,0.0003877,14]
[340111060,1728583847058,-647.869709,0.0003877,14]
[340111061,1728583847068,-647.869709,0.0003877,14]
[340111062,1728583847077,-151.0,0.0003877,14]
[340111063,1728583847087,-151.0,0.0003877,14]
[340111064,1728583847098,-500.0,0.00038773,5]
[340111065,1728583847108,-151.0,0.0003878,14]
[340111066,1728583847120,-151.0,0.0003878,14]
[340111067,1728583847130,-298148.16109453,0.000388,7]
[340111068,1728583847143,-55853.05000001,0.000388,7]
[340111073,1728584361367,200.0,0.00037235,120]
[340111074,1728584361390,341.33000789,0.00037235,120]
[340111078,1728584868288,6062.94936783,0.00039708,90]
[340111079,1728584900309,7112.69605105,0.00039708,120]
[340111080,1728584912980,1858.03971702,0.0003,7]
[340111094,1728585000728,676.61517139,0.00031556,4]